bitfinex-derivatives/quotes_BTCF0:USTF0_20250127
["timestamp","ask_amount","ask_price","bid_price","bid_amount"]
[1737937033000,0.71122318,102950.0,102940.0,0.001]
[1737937033298,0.84732708,102950.0,102940.0,0.001]
[1737937033696,0.71122318,102950.0,102940.0,0.001]
[1737937033892,0.71122318,102950.0,102940.0,0.195355]
[1737937034489,0.71122318,102950.0,102940.0,0.001]
[1737937034996,0.84732708,102950.0,102940.0,0.001]
[1737937035196,0.71122318,102950.0,102940.0,0.001]
[1737937035795,0.71122318,102950.0,102940.0,0.195355]
[1737937036095,0.71122318,102950.0,102940.0,0.3314589]
[1737937036789,0.63322318,102950.0,102940.0,0.3314589]
[1737937036992,0.43888718,102950.0,102940.0,0.3314589]
[1737937037196,0.63322318,102950.0,102940.0,0.3314589]
[1737937037394,0.63322318,102950.0,102940.0,0.195355]
[1737937037901,0.63322318,102950.0,102940.0,0.001]
[1737937038100,0.63322318,102950.0,102940.0,0.195355]
[1737937039104,0.0943,102950.0,102940.0,0.3314589]
[1737937039405,0.0943,102950.0,102940.0,0.6922589]
[1737937040599,0.07576584,102950.0,102940.0,2.1922589]
[1737937040797,0.27010184,102950.0,102940.0,2.1922589]
[1737937041102,0.27010184,102950.0,102940.0,0.001]
[1737937041103,0.63090184,102950.0,102940.0,0.001]
[1737937041701,0.27010184,102950.0,102940.0,0.195355]
[1737937042502,0.63090184,102950.0,102940.0,0.195355]
[1737937042998,0.27010184,102950.0,102940.0,0.195355]
[1737937043201,0.27010184,102950.0,102940.0,0.3314589]
[1737937045704,0.27010184,102950.0,102940.0,0.195355]
[1737937046108,0.27010184,102950.0,102940.0,0.3314589]
[1737937046305,0.016,102950.0,102940.0,0.6922589]
[1737937046507,0.00014531,102960.0,102950.0,0.194336]
[1737937046709,0.00014531,102960.0,102950.0,0.7754399]
[1737937046904,0.00014531,102960.0,102950.0,2.2754399]
[1737937047695,0.00014531,102960.0,102950.0,2.2764399]
[1737937047902,0.00814531,102960.0,102950.0,2.2764399]
[1737937048206,0.1638,102970.0,102960.0,0.194317]
[1737937048412,0.3608,102980.0,102970.0,0.194298]
[1737937048413,0.555096,102980.0,102970.0,0.194298]
[1737937048609,0.555096,102980.0,102970.0,0.3304019]
[1737937048911,0.555096,102980.0,102970.0,0.194298]
[1737937049608,0.555096,102980.0,102960.0,0.19545131]
[1737937049609,0.197298,102970.0,102960.0,0.19545131]
[1737937049814,0.558098,102970.0,102960.0,0.00114531]
[1737937050112,0.6942019,102970.0,102960.0,0.00114531]
[1737937050511,0.194336,102950.0,102940.0,0.40391614]
[1737937050808,1.05150008,102950.0,102940.0,0.40391614]
[1737937051404,1.13030008,102950.0,102940.0,0.14741614]
[1737937051715,0.194355,102940.0,102930.0,0.6232164]
[1737937052011,0.6912589,102940.0,102930.0,0.6232164]
[1737937052215,0.6912589,102940.0,102930.0,0.00014531]
[1737937052403,0.6912589,102940.0,102910.0,0.28837972]
[1737937052404,0.194393,102920.0,102910.0,0.28837972]
[1737937052608,0.915993,102920.0,102910.0,0.28837972]
[1737937052805,0.8577039,102920.0,102900.0,0.33469137]
[1737937053105,0.6913159,102910.0,102900.0,0.33469137]
[1737937054614,0.7767159,102910.0,102900.0,0.33469137]
[1737937054911,0.8619159,102910.0,102900.0,0.33469137]
[1737937055508,0.9445159,102910.0,102900.0,0.33469137]
[1737937056105,0.9465159,102910.0,102900.0,0.33469137]
[1737937056512,0.9455159,102910.0,102900.0,1.83469137]
[1737937056716,1.04364368,102910.0,102900.0,1.5]
[1737937056904,1.04564368,102910.0,102900.0,1.5]
[1737937057111,0.96024368,102910.0,102900.0,1.5]
[1737937057308,0.95824368,102910.0,102900.0,1.5]
[1737937057519,0.96024368,102910.0,102900.0,1.5]
[1737937057909,0.87764368,102910.0,102900.0,1.5]
[1737937058109,0.87764368,102910.0,102900.0,1.694431]
[1737937058417,0.68323168,102910.0,102900.0,1.694431]
[1737937058916,0.32243168,102910.0,102900.0,1.8305349]
[1737937059125,0.32243168,102910.0,102900.0,2.1913349]
[1737937059417,0.32243168,102910.0,102900.0,2.3502349]
[1737937059613,0.004,102910.0,102900.0,2.214131]
[1737937060413,0.198412,102910.0,102900.0,1.853331]
[1737937061516,0.559212,102910.0,102900.0,0.0768]
[1737937061718,0.194431,102900.0,102890.0,0.27970341]
[1737937062109,0.555231,102900.0,102890.0,1.50026241]
[1737937062313,0.555231,102900.0,102890.0,1.69471241]
[1737937062519,0.555231,102900.0,102890.0,1.83081631]
[1737937062720,0.194431,102900.0,102890.0,1.83081631]
[1737937062918,0.195431,102900.0,102890.0,1.83081631]
[1737937063117,0.001,102900.0,102890.0,2.19161631]
[1737937063317,0.001,102900.0,102890.0,1.83081631]
[1737937063619,0.001,102900.0,102890.0,2.19161631]
[1737937064210,0.19454131,102920.0,102910.0,0.194412]
[1737937064408,0.19454131,102920.0,102910.0,0.555212]
[1737937064911,0.19454131,102920.0,102910.0,2.055212]
[1737937065613,0.19454131,102920.0,102910.0,2.137612]
[1737937066214,0.20054131,102920.0,102910.0,2.137612]
[1737937067025,0.56134131,102920.0,102910.0,1.776812]
[1737937067326,0.69744521,102920.0,102910.0,1.5]
[1737937068522,0.50304921,102920.0,102890.0,0.07956241]
[1737937068822,0.555215,102910.0,102900.0,0.194431]
[1737937069009,0.36694531,102920.0,102900.0,1.9969039]
[1737937069213,0.47652246,102940.0,102910.0,0.4969039]
[1737937069424,0.5058308,102950.0,102940.0,0.194355]
[1737937069425,0.1450308,102950.0,102940.0,0.194355]
[1737937069620,0.1450308,102950.0,102940.0,0.6912589]
[1737937069821,0.17340088,102960.0,102950.0,0.194336]
[1737937070018,0.43281997,102970.0,102960.0,0.194317]
[1737937070327,0.43281997,102970.0,102960.0,0.6912209]
[1737937070523,0.43281997,102970.0,102960.0,2.26452774]
[1737937071022,0.62711797,102970.0,102960.0,1.694317]
[1737937071213,0.62711797,102970.0,102960.0,0.194317]
[1737937071408,0.18235277,102960.0,102950.0,0.19447831]
[1737937071811,0.18235277,102960.0,102950.0,1.50014531]
[1737937072028,0.18235277,102960.0,102950.0,0.00014531]
[1737937072227,0.54315277,102960.0,102950.0,0.19448131]
[1737937072722,0.54315277,102960.0,102950.0,0.00014531]
[1737937073526,0.54315277,102960.0,102950.0,0.00414531]
[1737937074024,0.54261295,102960.0,102950.0,0.00114531]
[1737937075424,0.53064863,102960.0,102950.0,0.00014531]
[1737937076223,0.54053175,102960.0,102950.0,0.00014531]
[1737937078624,0.90133175,102960.0,102950.0,0.00014531]
[1737937079835,0.97993175,102960.0,102950.0,0.00014531]
[1737937080019,1.18934249,102960.0,102950.0,0.00014531]
[1737937080326,1.01949386,102960.0,102910.0,0.0014573]
[1737937080527,0.555174,102930.0,102920.0,1.5]
[1737937081033,0.194393,102920.0,102910.0,0.0780573]
[1737937081218,0.555193,102920.0,102910.0,0.0780573]
[1737937081425,0.555193,102920.0,102910.0,1.5780573]
[1737937082126,0.555193,102920.0,102910.0,1.5766]
[1737937082735,0.555193,102920.0,102910.0,1.5776]
[1737937083127,0.555193,102920.0,102910.0,0.001]
[1737937083327,0.76460374,102920.0,102910.0,0.004]
[1737937084237,0.194412,102910.0,102900.0,0.00014531]
[1737937084436,0.76462274,102910.0,102900.0,0.00014531]
[1737937084827,0.83982274,102910.0,102900.0,0.00014531]
[1737937085231,0.555212,102910.0,102900.0,0.00014531]
[1737937085427,0.555212,102910.0,102900.0,0.19657631]
[1737937085838,0.5552,102920.0,102910.0,0.194412]
[1737937086135,0.56477721,102920.0,102910.0,0.194412]
[1737937086332,0.3608,102920.0,102910.0,0.194412]
[1737937086532,0.3608,102920.0,102910.0,0.40382274]
[1737937086839,0.36094531,102930.0,102920.0,0.194393]
[1737937087033,0.36094531,102930.0,102920.0,0.40380374]
[1737937087230,0.00014531,102930.0,102920.0,0.40380374]
[1737937087428,0.00014531,102930.0,102920.0,0.76460374]
[1737937087628,0.00014531,102930.0,102920.0,0.555193]
[1737937088029,0.55531931,102930.0,102920.0,0.194393]
[1737937088425,0.55531931,102930.0,102900.0,0.64225231]
[1737937088426,0.18783108,102920.0,102910.0,0.194406]
[1737937088631,0.3638,102920.0,102900.0,0.23284531]
[1737937088929,0.194412,102910.0,102900.0,0.42726231]
[1737937090039,0.194412,102910.0,102900.0,0.43326231]
[1737937090236,0.194412,102910.0,102900.0,0.43426231]
[1737937090444,0.194412,102910.0,102900.0,0.42826231]
[1737937090643,0.194412,102910.0,102900.0,0.43426231]
[1737937091051,0.555202,102920.0,102910.0,0.194412]
[1737937091441,0.18783208,102920.0,102910.0,0.194412]
[1737937091642,0.194412,102910.0,102900.0,0.43426331]
[1737937092042,0.194412,102910.0,102900.0,0.43326331]
[1737937092354,0.56515488,102920.0,102910.0,0.194412]
[1737937092746,0.194412,102910.0,102900.0,1.92726931]
[1737937092946,0.194412,102910.0,102900.0,1.93326931]
[1737937093250,0.194412,102910.0,102900.0,1.93526931]
[1737937093447,0.194412,102910.0,102900.0,1.92926931]
[1737937095144,0.194412,102910.0,102900.0,1.92726931]
[1737937095344,0.194412,102910.0,102900.0,1.93326931]
[1737937095552,0.194412,102910.0,102900.0,1.85716931]
[1737937095938,0.194412,102910.0,102900.0,1.85416931]
[1737937096744,0.555212,102910.0,102900.0,1.50314531]
[1737937096945,0.69123835,102910.0,102900.0,0.00314531]
[1737937097548,0.85053835,102910.0,102900.0,0.00314531]
[1737937097947,0.194431,102900.0,102890.0,0.0001171]
[1737937098255,0.69125735,102900.0,102890.0,0.0001171]
[1737937098943,0.77405735,102900.0,102890.0,0.0001171]
[1737937100148,0.57962635,102900.0,102870.0,0.71709598]
[1737937100445,0.555268,102880.0,102870.0,0.63759598]
[1737937100650,0.555268,102880.0,102870.0,0.83208298]
[1737937101149,0.55537909,102880.0,102870.0,0.83208298]
[1737937101350,0.55537909,102880.0,102870.0,0.63759598]
[1737937101752,0.55537909,102880.0,102870.0,0.63959598]
[1737937101953,0.55537909,102880.0,102870.0,0.00345784]
[1737937102146,0.55537909,102880.0,102870.0,0.00845784]
[1737937102455,0.55537909,102880.0,102870.0,0.007]
[1737937104756,0.5649288,102880.0,102870.0,0.007]
[1737937105164,0.5649288,102880.0,102870.0,0.201487]
[1737937105460,0.00011109,102880.0,102870.0,0.33751335]
[1737937105662,0.00011109,102880.0,102870.0,0.69831335]
[1737937105954,0.00011109,102880.0,102870.0,0.562287]
[1737937106150,0.00011109,102880.0,102870.0,2.19831335]
[1737937106352,0.00014531,102890.0,102880.0,0.194468]
[1737937106558,0.00014531,102890.0,102880.0,0.40819435]
[1737937106753,0.00014531,102890.0,102880.0,0.272168]
[1737937107358,0.19459531,102890.0,102880.0,0.272168]
[1737937107551,0.00014531,102890.0,102880.0,0.632968]
[1737937107750,0.00014531,102890.0,102880.0,0.272168]
[1737937108358,0.00014531,102890.0,102880.0,0.274168]
[1737937109860,0.00014531,102890.0,102880.0,0.77099435]
[1737937111053,0.00014531,102890.0,102880.0,0.78083601]
[1737937111248,0.45748234,102920.0,102910.0,0.194412]
[1737937111458,0.44766601,102920.0,102910.0,0.33043835]
[1737937111752,0.08686601,102920.0,102910.0,2.27483835]
[1737937111952,0.08686601,102920.0,102910.0,1.91403835]
[1737937112672,0.09186601,102920.0,102910.0,1.91503835]
[1737937112961,0.09186601,102920.0,102910.0,2.27583835]
[1737937113565,0.09486601,102920.0,102910.0,1.91503835]
[1737937113865,0.28925901,102920.0,102910.0,1.779012]
[1737937114061,0.09486601,102920.0,102910.0,1.779012]
[1737937115054,0.65005901,102920.0,102910.0,1.779012]
[1737937115261,0.65005901,102920.0,102910.0,1.5846]
[1737937115457,0.78608536,102920.0,102910.0,0.001]
[1737937115855,0.194412,102910.0,102900.0,0.00014531]
[1737937116052,0.69123835,102910.0,102900.0,0.00014531]
[1737937117066,0.69323835,102910.0,102900.0,0.00014531]
[1737937117470,0.194469,102880.0,102870.0,1.86243102]
[1737937117652,0.555269,102880.0,102870.0,1.5804]
[1737937117859,0.555269,102880.0,102870.0,1.5]
[1737937118367,0.194494,102870.0,102860.0,0.194503]
[1737937118668,0.555294,102870.0,102860.0,0.194503]
[1737937118963,0.555294,102870.0,102860.0,1.694503]
[1737937119655,0.556294,102870.0,102860.0,1.702503]
[1737937120856,0.556294,102870.0,102860.0,0.011]
[1737937121558,0.195494,102870.0,102860.0,0.205506]
[1737937121960,0.556294,102870.0,102860.0,0.205506]
[1737937122373,0.556294,102870.0,102860.0,0.011]
[1737937123366,0.56619386,102870.0,102860.0,0.011]
[1737937124464,0.56619386,102870.0,102860.0,0.205506]
[1737937124665,0.56619386,102870.0,102860.0,0.011]
[1737937127263,0.56619386,102870.0,102860.0,0.205506]
[1737937128675,0.56619386,102870.0,102860.0,0.011]
[1737937130270,0.70222021,102870.0,102860.0,0.011]
[1737937130469,0.33053235,102860.0,102850.0,0.00145824]
[1737937130675,0.555306,102860.0,102850.0,0.00145824]
[1737937130874,0.555306,102860.0,102850.0,0.19598324]
[1737937132581,0.556306,102860.0,102850.0,0.34000959]
[1737937132771,0.001,102860.0,102850.0,0.34200959]
[1737937133475,0.001,102860.0,102850.0,0.70280959]
[1737937135072,0.001,102860.0,102850.0,0.80003383]
[1737937135674,0.001,102860.0,102850.0,0.74533913]
[1737937136271,0.001,102860.0,102850.0,0.70280959]
[1737937136983,0.001,102860.0,102850.0,0.56678324]
[1737937137185,0.556306,102860.0,102850.0,1.70598324]
[1737937137382,0.556306,102860.0,102850.0,0.20598324]
[1737937137687,0.001,102860.0,102850.0,0.34200959]
[1737937137979,0.001,102860.0,102850.0,1.85164023]
[1737937138182,0.20252289,102890.0,102850.0,2.51005947]
[1737937138482,0.20252289,102890.0,102880.0,0.69129435]
[1737937139079,0.56332289,102900.0,102890.0,0.19445]
[1737937139277,0.20252289,102900.0,102890.0,0.91807635]
[1737937139675,0.20252289,102900.0,102890.0,2.41807635]
[1737937140281,0.31755414,102910.0,102900.0,0.194431]
[1737937140585,0.20198265,102920.0,102910.0,0.194412]
[1737937140781,0.20198265,102920.0,102910.0,0.69123835]
[1737937141273,0.56278265,102920.0,102910.0,0.194412]
[1737937141474,0.194423,102910.0,102900.0,0.194427]
[1737937141675,0.636023,102910.0,102900.0,0.194427]
[1737937141978,0.194431,102900.0,102890.0,0.19458931]
[1737937142285,0.555231,102900.0,102890.0,0.19458931]
[1737937142486,0.555231,102900.0,102890.0,0.00014531]
[1737937142676,0.69125735,102900.0,102890.0,0.00014531]
[1737937143284,0.69125735,102900.0,102890.0,0.23735292]
[1737937143285,0.555231,102900.0,102890.0,0.23735292]
[1737937143479,0.54326677,102900.0,102890.0,0.23735292]
[1737937144478,0.54426677,102900.0,102890.0,0.23735292]
[1737937145078,0.54526677,102900.0,102890.0,0.23235292]
[1737937145579,0.54426677,102900.0,102890.0,0.23235292]
[1737937145774,0.54426677,102900.0,102890.0,0.23435292]
[1737937146484,0.54526677,102900.0,102890.0,0.23235292]
[1737937146683,0.54426677,102900.0,102890.0,0.23235292]
[1737937147087,0.54426677,102900.0,102890.0,0.00014531]
[1737937147783,0.68129312,102900.0,102890.0,0.00014531]
[1737937149280,0.54526677,102900.0,102890.0,0.00014531]
[1737937149489,0.54526677,102900.0,102890.0,0.19459531]
[1737937149684,0.3628,102900.0,102890.0,0.33062166]
[1737937149881,0.002,102900.0,102890.0,1.83062166]
[1737937150082,0.557231,102900.0,102890.0,1.69459531]
[1737937150289,0.557231,102900.0,102890.0,1.50014531]
[1737937150488,0.69325735,102900.0,102890.0,0.00014531]
[1737937150894,0.49882635,102900.0,102870.0,0.23702505]
[1737937151186,0.555269,102880.0,102870.0,1.73702505]
[1737937151388,0.555269,102880.0,102870.0,1.694479]
[1737937152581,0.555269,102880.0,102870.0,1.699479]
[1737937152991,0.555269,102880.0,102870.0,1.700479]
[1737937153487,0.555269,102880.0,102870.0,1.506]
[1737937153688,1.05209535,102880.0,102870.0,0.006]
[1737937153889,1.05209535,102880.0,102870.0,0.78101317]
[1737937154192,1.05209535,102880.0,102870.0,0.77801317]
[1737937154193,1.13279535,102880.0,102870.0,0.77801317]
[1737937154386,1.13279535,102880.0,102870.0,0.77701317]
[1737937154594,0.996769,102880.0,102870.0,0.97150017]
[1737937155086,0.996769,102880.0,102870.0,0.77701317]
[1737937155590,1.00648751,102880.0,102870.0,0.77701317]
[1737937157883,1.00648751,102880.0,102870.0,0.97150017]
[1737937158291,1.00648751,102880.0,102870.0,0.196487]
[1737937158795,0.00014531,102890.0,102880.0,0.194469]
[1737937159090,0.55539531,102890.0,102880.0,0.194469]
[1737937159286,0.70559531,102890.0,102880.0,0.194469]
[1737937159483,0.70559531,102890.0,102880.0,1.5]
[1737937159686,0.194469,102880.0,102870.0,0.196475]
[1737937159889,0.555269,102880.0,102870.0,0.28721838]
[1737937160089,0.70660031,102890.0,102880.0,0.194469]
[1737937160281,0.07634531,102890.0,102880.0,0.28521238]
[1737937160692,0.63159531,102890.0,102880.0,0.194469]
[1737937160884,0.62959531,102890.0,102880.0,0.194469]
[1737937161284,0.34769531,102890.0,102880.0,0.194469]
[1737937161483,0.70849531,102890.0,102880.0,0.194469]
[1737937161690,0.34769531,102890.0,102880.0,0.28521238]
[1737937161891,0.26879531,102890.0,102880.0,0.28521238]
[1737937162583,0.63159531,102890.0,102880.0,0.28521238]
[1737937163197,0.27079531,102890.0,102880.0,0.28521238]
[1737937163396,0.07634531,102890.0,102880.0,0.28521238]
[1737937163588,0.00214531,102890.0,102880.0,0.64601238]
[1737937164096,0.00214531,102890.0,102880.0,0.68855013]
[1737937165485,0.19659531,102890.0,102880.0,0.59780675]
[1737937165690,0.19659531,102890.0,102880.0,2.09780675]
[1737937165890,0.19659531,102890.0,102880.0,2.18855013]
[1737937166287,0.19659531,102890.0,102880.0,2.96118324]
[1737937166493,0.00214531,102890.0,102880.0,2.92832766]
[1737937169197,0.19659531,102890.0,102880.0,2.69617753]
[1737937169404,0.19659531,102890.0,102880.0,2.59575198]
[1737937170905,0.19659531,102890.0,102880.0,2.23495198]
[1737937173399,0.19659531,102890.0,102880.0,1.8687037]
[1737937173909,0.00214531,102890.0,102880.0,1.8687037]
[1737937174116,0.00214531,102890.0,102880.0,0.45944708]
[1737937174613,0.00214531,102890.0,102880.0,1.95944708]
[1737937176625,0.00214531,102890.0,102880.0,0.45944708]
[1737937176823,0.36294531,102890.0,102870.0,0.55978411]
[1737937177014,0.36294531,102890.0,102880.0,1.78521238]
[1737937177625,0.36294531,102890.0,102880.0,2.07540005]
[1737937177919,0.55739531,102890.0,102880.0,0.48465667]
[1737937178317,0.55739531,102890.0,102880.0,1.98465667]
[1737937178718,0.55739531,102890.0,102880.0,2.07540005]
[1737937179123,0.55739531,102890.0,102880.0,1.98465667]
[1737937179624,0.55639531,102890.0,102880.0,1.98465667]
[1737937180425,0.64813869,102890.0,102880.0,0.29018767]
[1737937180617,0.72663869,102890.0,102880.0,0.29018767]
[1737937182220,0.72663869,102890.0,102880.0,0.23257972]
[1737937183624,0.73614855,102890.0,102880.0,0.23257972]
[1737937184528,0.72764855,102890.0,102880.0,0.23257972]
[1737937185024,0.194468,102880.0,102870.0,0.24239449]
[1737937185325,0.80471138,102880.0,102870.0,0.24239449]
[1737937185527,0.194487,102870.0,102860.0,0.0426938]
[1737937185718,0.64603038,102870.0,102860.0,0.00014531]
[1737937187219,0.73677376,102870.0,102850.0,0.40626274]
[1737937187421,0.72114938,102860.0,102850.0,0.40626274]
[1737937188231,0.96601276,102860.0,102830.0,2.67274721]
[1737937188433,1.09763076,102840.0,102830.0,2.67274721]
[1737937188820,1.09733847,102840.0,102830.0,1.17274721]
[1737937190722,1.09733847,102840.0,102830.0,1.17374721]
[1737937193123,1.09733847,102840.0,102830.0,1.13961731]
[1737937193725,0.194563,102830.0,102820.0,0.00014531]
[1737937193932,0.72870638,102830.0,102820.0,0.00014531]
[1737937195136,0.72870638,102830.0,102820.0,1.50114531]
[1737937195436,0.72870638,102830.0,102820.0,0.00114531]
[1737937196035,0.72870638,102830.0,102820.0,1.50114531]
[1737937196632,0.72870638,102830.0,102820.0,0.00514531]
[1737937198432,0.194601,102810.0,102800.0,0.10145913]
[1737937198626,0.916201,102810.0,102800.0,0.10145913]
[1737937200340,0.916201,102810.0,102800.0,0.29607913]
[1737937200638,0.917201,102810.0,102800.0,0.30507913]
[1737937201546,0.7226,102810.0,102800.0,0.39582251]
[1737937201732,0.917201,102810.0,102800.0,0.39582251]
[1737937202036,0.917201,102810.0,102800.0,0.30507913]
[1737937202237,1.00794438,102810.0,102800.0,0.11045913]
[1737937202934,1.18048776,102810.0,102800.0,0.109]
[1737937203442,1.18048776,102810.0,102800.0,0.009]
[1737937203632,0.194658,102780.0,102770.0,0.354867]
[1737937203837,0.555458,102780.0,102770.0,0.354867]
[1737937204833,0.555458,102780.0,102770.0,0.358867]
[1737937205032,0.64620138,102780.0,102770.0,0.358867]
[1737937205439,0.64720138,102780.0,102770.0,0.364867]
[1737937205642,0.64720138,102780.0,102770.0,0.18540907]
[1737937206748,0.64720138,102780.0,102770.0,0.18140907]
[1737937206935,0.556458,102780.0,102770.0,0.18440907]
[1737937207436,0.3618,102780.0,102770.0,0.46982945]
[1737937207737,0.556458,102780.0,102770.0,0.46382945]
[1737937207943,0.3618,102780.0,102770.0,0.46382945]
[1737937208336,0.556458,102780.0,102770.0,0.46382945]
[1737937208542,0.556458,102780.0,102770.0,0.37308607]
[1737937208840,0.3618,102780.0,102770.0,0.46382945]
[1737937209042,0.001,102780.0,102770.0,0.46382945]
[1737937209236,0.3618,102780.0,102770.0,0.46382945]
[1737937210148,0.64720138,102780.0,102770.0,0.357877]
[1737937210646,0.64720138,102780.0,102770.0,0.1632]
[1737937210945,0.194677,102770.0,102760.0,0.12347386]
[1737937211144,0.64622038,102770.0,102760.0,0.12347386]
[1737937211343,0.194696,102760.0,102750.0,0.3959778]
[1737937211541,0.555496,102760.0,102750.0,0.3959778]
[1737937211939,0.64623938,102760.0,102750.0,0.17391291]
[1737937212646,0.64623938,102760.0,102750.0,0.36862691]
[1737937213238,0.64623938,102760.0,102750.0,0.17391291]
[1737937213543,0.64623938,102760.0,102750.0,0.15869994]
[1737937213942,0.3608,102760.0,102750.0,0.35641394]
[1737937214138,0.3542,102760.0,102750.0,2.0379007]
[1737937214337,0.36094531,102770.0,102760.0,0.194696]
[1737937214534,0.36094531,102770.0,102760.0,0.28543938]
[1737937215039,0.36094531,102770.0,102760.0,1.78543938]
[1737937215348,0.55562231,102770.0,102760.0,0.23729431]
[1737937215540,0.55562231,102770.0,102760.0,0.23829431]
[1737937215736,0.36194531,102770.0,102760.0,0.23829431]
[1737937216045,0.00114531,102770.0,102760.0,1.82903769]
[1737937216242,0.36194531,102770.0,102760.0,1.82903769]
[1737937216948,0.00114531,102770.0,102760.0,1.82903769]
[1737937217149,0.11532463,102780.0,102760.0,1.99514169]
[1737937217454,0.31943308,102790.0,102780.0,0.194658]
[1737937217652,0.79593249,102810.0,102780.0,0.63480676]
[1737937217954,0.43513249,102810.0,102800.0,0.37610676]
[1737937218343,0.23180784,102820.0,102810.0,0.194601]
[1737937218539,0.23195315,102820.0,102810.0,0.69158026]
[1737937218857,0.23195315,102820.0,102810.0,0.9407225]
[1737937219044,0.23195315,102820.0,102810.0,1.87337857]
[1737937219241,0.59221333,102820.0,102810.0,1.87337857]
[1737937219440,0.59221333,102820.0,102810.0,1.73719931]
[1737937220043,0.59221333,102820.0,102810.0,0.194601]
[1737937220455,0.59221333,102820.0,102810.0,0.33078026]
[1737937220751,0.59521333,102820.0,102810.0,1.83078026]
[1737937221254,0.59521333,102820.0,102810.0,0.33078026]
[1737937221446,0.59221333,102820.0,102810.0,0.33378026]
[1737937221747,0.59221333,102820.0,102810.0,0.33478026]
[1737937221946,0.58966031,102820.0,102810.0,0.33478026]
[1737937222744,0.36094531,102820.0,102810.0,0.33478026]
[1737937222954,0.00014531,102820.0,102810.0,0.33478026]
[1737937223342,0.36094531,102820.0,102810.0,0.33478026]
[1737937223550,0.36094531,102820.0,102810.0,0.33378026]
[1737937223748,0.51594531,102820.0,102810.0,0.33378026]
[1737937224057,0.00014531,102820.0,102810.0,0.33378026]
[1737937224760,0.5956,102840.0,102830.0,0.194563]
[1737937224953,0.3608,102840.0,102830.0,0.33074226]
[1737937226053,0.555344,102840.0,102830.0,0.33074226]
[1737937226255,0.635144,102840.0,102830.0,0.33074226]
[1737937226454,0.635144,102840.0,102830.0,0.194563]
[1737937227150,0.640144,102840.0,102830.0,0.194563]
[1737937227349,0.62416286,102840.0,102830.0,0.194563]
[1737937227759,0.194563,102830.0,102820.0,0.19472331]
[1737937227955,0.705963,102830.0,102820.0,0.19472331]
[1737937229051,0.705963,102830.0,102820.0,0.00014531]
[1737937230059,0.706963,102830.0,102820.0,0.00014531]
[1737937231965,0.706963,102830.0,102820.0,0.33090657]
[1737937232364,0.706963,102830.0,102820.0,0.19472731]
[1737937232563,0.1516,102830.0,102820.0,0.33090657]
[1737937232864,0.001,102830.0,102820.0,0.69170657]
[1737937233362,0.36094531,102850.0,102840.0,0.194544]
[1737937233566,0.00014531,102850.0,102840.0,0.46690252]
[1737937233766,0.00014531,102850.0,102840.0,0.33072326]
[1737937233962,0.00014531,102850.0,102840.0,1.83072326]
[1737937234166,0.00014531,102850.0,102840.0,1.96690252]
[1737937234374,0.3608,102860.0,102850.0,0.194525]
[1737937234572,0.3608,102860.0,102850.0,0.33070426]
[1737937234969,0.4356,102870.0,102860.0,0.194506]
[1737937235173,0.4356,102870.0,102860.0,0.33068526]
[1737937235663,0.4356,102870.0,102850.0,0.409431]
[1737937235664,0.4356,102870.0,102850.0,0.19466631]
[1737937235865,0.711106,102860.0,102850.0,0.19466631]
[1737937236069,0.720106,102860.0,102850.0,0.00114531]
[1737937236275,0.194525,102850.0,102840.0,0.19454]
[1737937236472,0.555325,102850.0,102840.0,0.19454]
[1737937236660,0.555325,102850.0,102840.0,0.33071926]
[1737937236861,0.53679143,102850.0,102840.0,0.19454]
[1737937237575,0.53879143,102850.0,102840.0,0.19454]
[1737937238275,0.54179143,102850.0,102840.0,0.19454]
[1737937238976,0.3658,102850.0,102830.0,0.13632457]
[1737937239176,0.4418,102840.0,102830.0,0.19470831]
[1737937240285,0.4418,102840.0,102830.0,0.33088757]
[1737937240792,0.637344,102840.0,102830.0,0.33088757]
[1737937240972,0.638344,102840.0,102830.0,0.19470831]
[1737937242182,0.4438,102840.0,102830.0,0.33088757]
[1737937242880,0.4438,102840.0,102830.0,1.83088757]
[1737937243080,0.083,102840.0,102830.0,2.19168757]
[1737937243282,0.16164531,102860.0,102850.0,0.194525]
[1737937243578,0.00014531,102860.0,102850.0,0.69150426]
[1737937243986,0.00014531,102860.0,102850.0,2.28874741]
[1737937244185,0.00014531,102860.0,102850.0,2.19150426]
[1737937244687,0.00714531,102860.0,102850.0,2.19250426]
[1737937245185,1e-08,102860.0,102850.0,2.30470854]
[1737937245382,0.34226527,102870.0,102850.0,2.11018354]
[1737937245579,0.3608,102880.0,102870.0,0.194487]
[1737937245777,0.3608,102880.0,102870.0,0.33066626]
[1737937245982,0.5913,102890.0,102880.0,0.194468]
[1737937246185,0.5913,102890.0,102880.0,0.33064726]
[1737937246386,0.59076018,102890.0,102880.0,0.33064726]
[1737937246681,0.59076018,102890.0,102880.0,1.83064726]
[1737937247080,0.22996018,102890.0,102880.0,1.83064726]
[1737937247483,0.23196018,102890.0,102880.0,1.83064726]
[1737937248181,0.23796018,102890.0,102880.0,1.83164726]
[1737937249076,0.23796018,102890.0,102880.0,1.84114759]
[1737937249489,0.23796018,102890.0,102880.0,0.34114759]
[1737937250694,0.79321018,102890.0,102880.0,0.195468]
[1737937253089,0.194468,102880.0,102870.0,0.19462231]
[1737937253288,0.555268,102880.0,102870.0,0.19462231]
[1737937254386,0.557268,102880.0,102870.0,0.19462231]
[1737937254787,0.558268,102880.0,102870.0,0.19462231]
[1737937255890,0.558268,102880.0,102870.0,0.00014531]
[1737937256089,0.194487,102870.0,102860.0,0.194504]
[1737937256288,0.555287,102870.0,102860.0,0.194504]
[1737937256586,0.555287,102870.0,102860.0,1.694504]
[1737937256986,0.555287,102870.0,102860.0,1.5]
[1737937257192,0.49697926,102870.0,102850.0,0.00014531]
[1737937257492,0.703406,102860.0,102850.0,0.19466731]
[1737937257683,0.194525,102850.0,102840.0,1.92739452]
[1737937257884,0.555325,102850.0,102840.0,1.9259363]
[1737937258091,0.555325,102850.0,102840.0,2.06211556]
[1737937258291,0.3608,102850.0,102840.0,2.06211556]
[1737937258892,0.3608,102850.0,102840.0,1.83071626]
[1737937259298,0.555325,102850.0,102840.0,1.83071626]
[1737937259499,0.3608,102850.0,102840.0,1.83071626]
[1737937260290,0.3608,102850.0,102840.0,1.83371626]
[1737937260494,0.3608,102850.0,102840.0,1.83471626]
[1737937260692,0.555325,102850.0,102840.0,1.83171626]
[1737937260899,0.4348,102850.0,102840.0,1.83471626]
[1737937262198,0.629325,102850.0,102840.0,1.83471626]
[1737937263596,0.629325,102850.0,102840.0,0.198537]